Cogmind - Beta 13 @@@ ROGUE MODE // 2024.04.15 @ 03:04:21 Player: Astrozal Result: Self-destructed Performance ------------- Evolutions (1) 500 Regions Visited (2) 400 Robots Destroyed (16) 80 Value Destroyed (443) 443 Prototype IDs (0) 0 Alien Tech Used (0) 0 Bonus (0) 0 TOTAL SCORE: 1423 Bonus ------- None Cogmind --------- Core Integrity 173/400 Matter 260/300 Energy 125/125 System Corruption 0% Temperature Cool (9) Movement Walking (190) Ox1 Location -9/Materials Parts ------- > --- POWER (1) -------- Light Ion Engine > --- PROPULSION (2) --- Aluminum Leg > --- UTILITY (4) ------ Medium Storage Unit Tractor Beam > --- WEAPON (2) ------- Light Assault Rifle > --- INVENTORY (10) --- Ion Engine Aluminum Leg High-capacity Storage Unit Large Matter Pod (0) Datajack Peak State ------------ > --- POWER ------------ Light Nuclear Core > --- PROPULSION ------- Aluminum Leg Aluminum Leg > --- UTILITY ---------- Medium Storage Unit Tractor Beam > --- WEAPON ----------- Assault Rifle Assault Rifle > --- INVENTORY -------- Ion Engine Aluminum Leg Aluminum Leg High-capacity Storage Unit Large Matter Pod Datajack [Rating: 9] Favorites ----------- Power Light Ion Engine Engine Light Ion Engine Power Core Light Nuclear Core Propulsion Aluminum Leg Treads Light Treads Leg Aluminum Leg Wheel Wheel Utility Small Storage Unit Device Tractor Beam Storage Small Storage Unit Weapon Assault Rifle Energy Gun Small Laser Ballistic Gun Assault Rifle Build | -11 -10 -9 ------- Run | Yrd Mat Mat Slots Evolved 2 | . . 2 Power . | . . . Propulsion . | . . . Utility 2 | . . 2 Weapon . | . . . Parts Attached 22 | 6 7 9 Power 4 | 1 2 1 Engine 3 | 1 1 1 Core 1 | . 1 . Reactor . | . . . Propulsion 8 | 2 4 2 Treads 2 | 2 . . Leg 4 | . 2 2 Wheel 2 | . 2 . Hover . | . . . Flight . | . . . Utility 3 | 1 . 2 Device 1 | . . 1 Storage 2 | 1 . 1 Processor . | . . . Hackware . | . . . Protection . | . . . Artifact . | . . . Weapon 7 | 2 1 4 Energy Gun 1 | . . 1 Energy Cannon . | . . . Ballistic Gun 6 | 2 1 3 Ballistic Cannon . | . . . Launcher . | . . . Special Weapon . | . . . Impact Weapon . | . . . Slashing Weapon . | . . . Piercing Weapon . | . . . Special Melee Weapon . | . . . Unidentified Prototypes . | . . . Parts Lost 10 | . 1 9 Power 2 | . 1 1 Propulsion 3 | . . 3 Utility . | . . . Weapon 5 | . . 5 Highest Loss Streak 9 | . 1 9 To Critical Strikes . | . . . Average Slot Usage (%) 75 | . 84 65 Engine 7 | . 12 . Core 4 | . 1 9 Treads 1 | . 3 . Leg 9 | . . 20 Wheel 12 | . 22 . Device 1 | . . 3 Storage 12 | . 14 11 Ballistic Gun 24 | . 28 20 Naked Turns . | . . . Heaviest Build 20 | 11 14 20 Greatest Support 40 | 40 40 20 Greatest Overweight (x) 4 | . 4 1 Average Overweight (x) . | . . . Largest Inventory Capacity 10 | 8 8 10 Average Capacity 8 | 6 8 9 Most Carried 8 | 6 8 8 Average Carried 6 | 3 7 6 Final Capacity 10 | 8 8 10 Final Carried 6 | 6 6 5 Class Distribution -------------------- 100% | Mutant Dominant Class ---------------- Mutant | -10/Materials Mutant | -9/Materials Resources | -11 -10 -9 ----------- Run | Yrd Mat Mat Matter Collected 613 | 228 239 146 Remotely 146 | . . 146 Salvage Created 538 | . 307 231 Parts 38 | . 20 18 Haulers Intercepted . | . . . Recyclers Shooed 1 | . 1 . Parts Field Recycled . | . . . Retrieved Matter . | . . . Parts Self-Destructed . | . . . Prevented . | . . . Kills | -11 -10 -9 ------- Run | Yrd Mat Mat Combat Hostiles Destroyed 15 | . 9 6 Guns 15 | . 9 6 Classes Destroyed 4 | . 3 1 Builder 1 | . 1 . Swarmer 5 | . 3 2 Grunt 8 | . 6 2 Sentry 2 | . . 2 Best Kill Streak 4 | . 4 2 Combat Bots Only 4 | . 4 2 Max Kills in Single Turn 2 | . 2 1 Gunslinging . | . . . Exploded . | . . . Melee . | . . . Uniques/NPCs Destroyed . | . . . Combat | -11 -10 -9 -------- Run | Yrd Mat Mat Hostile Shots Fired 142 | . 49 93 Missed 45 | . 16 29 Damage Taken 1251 | . 355 896 Core 337 | . 110 227 Absorbed by Shields . | . . . Core Remaining (%) 78 | 100 56 . Volleys Fired 63 | 2 29 32 Largest 2 | 1 2 2 Hottest 60 | 20 40 60 Shots Fired 115 | 2 58 55 Gun 115 | 2 58 55 Cannon . | . . . Launcher . | . . . Special . | . . . Kinetic 114 | 2 58 54 Thermal 1 | . . 1 Explosive . | . . . Electromagnetic . | . . . Robot Hit Streak 13 | 2 11 13 Robot Miss Streak 6 | . 6 4 Penetration Max . | . . . Secondary Targets 2 | . . 2 Max Gunslinging Chain 1 | . . 1 Shots Hit Robots 75 | 2 36 37 Core Hits 30 | . 17 13 Critical Kills . | . . . Critical Parts Destroyed . | . . . Critical Strikes . | . . . Melee Attacks . | . . . Impact . | . . . Slashing . | . . . Piercing . | . . . Sneak Attacks . | . . . Combat Hostiles . | . . . Follow-up Attacks . | . . . Damage Inflicted 939 | 14 468 457 Guns 919 | 14 461 444 Cannons . | . . . Explosions . | . . . Melee . | . . . Ramming 20 | . 7 13 Kinetic 908 | 14 461 433 Thermal 11 | . . 11 Explosive . | . . . Electromagnetic . | . . . Impact . | . . . Slashing . | . . . Piercing . | . . . Highest Corruption . | . . . Average Corruption . | . . . Corruption Purged . | . . . Corruption Blocked . | . . . Overload Shots . | . . . Overflow Damage . | . . . Projectiles . | . . . Explosions . | . . . Melee . | . . . Knockbacks . | . . . Impact . | . . . Kinetic . | . . . Secondary . | . . . Self-Inflicted Damage 3 | . 3 . Shots . | . . . Rammed 3 | . 3 . Targets Rammed 6 | . 3 3 Kicked 3 | . . 3 Crushed . | . . . Highest Temperature 24 | . 5 24 Average Temperature 9 | . 2 10 Received Heat Transfer 522 | . 144 378 Siege Activations . | . . . Robots Corrupted . | . . . Combat Hostiles . | . . . Parts Fried . | . . . Impact Corruptions . | . . . Robots Melted . | . . . Combat Hostiles . | . . . Parts Melted . | . . . Heat Transferred 25 | . . 25 Parts Sabotaged . | . . . Parts Stolen . | . . . Parts Stripped . | . . . Power Chain Reactions . | . . . Alert | -11 -10 -9 ------- Run | Yrd Mat Mat Peak Influence 332 | . 332 284 Initial 139 | . . 139 Average 128 | . 109 196 Maximum Alert Level 1 | . 1 1 Low Security (%) 72 | 100 75 60 Level 1 27 | . 24 39 Level 2 . | . . . Level 3 . | . . . Level 4 . | . . . Level 5 . | . . . High Security . | . . . Max Security . | . . . Squads Dispatched 2 | . 1 1 Investigation . | . . . Extermination . | . . . Reinforcement 2 | . 1 1 Assault . | . . . Garrison . | . . . Intercept . | . . . Searches Triggered . | . . . Construction Impeded . | . . . Haulers Reinforced . | . . . Active Scanning Responses . | . . . Cargo Convoy Interrupts . | . . . Stealth | -11 -10 -9 --------- Run | Yrd Mat Mat Distress Signals 2 | . 2 . Communications Jammed . | . . . Distress Signals . | . . . Times Spotted 34 | . 19 15 Peak Tracking Total 9 | . 6 9 Tactical Retreats 3 | . 2 1 Traps | -11 -10 -9 ------- Run | Yrd Mat Mat Traps Triggered . | . . . Indirectly . | . . . Trap Hack Attempts . | . . . Triggered . | . . . Disarmed 3 | . 3 . Reprogrammed . | . . . Reused . | . . . Traps Extracted . | . . . Installed . | . . . Triggered . | . . . Machines | -11 -10 -9 ---------- Run | Yrd Mat Mat Machines Disabled . | . . . Max in Single Turn . | . . . Machines Repaired . | . . . Machines Dismantled . | . . . Machines Sabotaged . | . . . Overloaded Fab Kills . | . . . Hacking | -11 -10 -9 --------- Run | Yrd Mat Mat Machines Accessed 2 | . 2 . Terminals 1 | . 1 . Fabricators . | . . . Repair Stations . | . . . Recycling Units 1 | . 1 . Scanalyzers . | . . . Garrison Access . | . . . Total Hacks 8 | . 8 . Successful 4 | . 4 . Failed 4 | . 4 . Catastrophic . | . . . Database Lockouts . | . . . Manual . | . . . Terminals 3 | . 3 . Fabricators . | . . . Repair Stations . | . . . Recycling Units 5 | . 5 . Scanalyzers . | . . . Garrison Access . | . . . Terminal Hacks 2 | . 2 . Disarm Traps 1 | . 1 . Registered Components 1 | . 1 . Fabricator Hacks . | . . . Repair Station Hacks . | . . . Recycling Unit Hacks 2 | . 2 . Process 1 | . 1 . Report Inventory 1 | . 1 . Scanalyzer . | . . . Garrison Access Hacks . | . . . Unauthorized Hacks . | . . . Terminals . | . . . Fabricators . | . . . Repair Stations . | . . . Recycling Units . | . . . Scanalyzers . | . . . Garrison Access . | . . . Data Cores Recovered . | . . . Used . | . . . Hacking Detections 2 | . 2 . Full Trace Events . | . . . Feedback Events . | . . . Feedback Blocked . | . . . Robot Schematics Acquired . | . . . Robots Built . | . . . Authchips . | . . . Time . | . . . Total Robot Build Rating . | . . . Part Schematics Acquired . | . . . Parts Built . | . . . Authchips . | . . . Time . | . . . Total Part Build Rating . | . . . Parts Repaired . | . . . Time . | . . . Parts Recycled . | . . . Recycled Matter 25 | . 25 . Retrieved Matter . | . . . Retrieved Components . | . . . Parts Scanalyzed . | . . . Part Schematics Acquired . | . . . Parts Damaged . | . . . Bothacking | -11 -10 -9 ------------ Run | Yrd Mat Mat Used RIF Installer . | . . . Robots Hacked . | . . . Non-combat . | . . . Combat . | . . . Robot Hacks Applied . | . . . Relay Couplers Released . | . . . Fabnet Peak Effective % . | . . . Robots Rewired . | . . . Allies Hacked . | . . . Hacks Repelled . | . . . Allies | -11 -10 -9 -------- Run | Yrd Mat Mat Total Allies . | . . . Largest Group . | . . . Highest-Rated Group . | . . . Highest-Rated Ally . | . . . Total Orders . | . . . Ally Attacks . | . . . Total Damage . | . . . Kills . | . . . Allies Corrupted . | . . . Allies Melted . | . . . Intel | -11 -10 -9 ------- Run | Yrd Mat Mat Robot Analysis Total . | . . . Derelict Logs Recovered . | . . . Drone Launches . | . . . Drone Recoveries . | . . . Exploration | -11 -10 -9 ------------- Run | Yrd Mat Mat Turns Passed 856 | 124 393 339 Spaces Moved 546 | 71 290 185 Core 11 | 9 2 . Treads 89 | 62 27 . Legs 195 | . 10 185 Wheels 251 | . 251 . Hover . | . . . Flight . | . . . Fastest Speed 50 | 50 90 120 Average Speed 113 | 146 98 125 Slowest Speed 250 | 160 250 190 Overloaded Moves . | . . . Propulsion Burnouts . | . . . Robots Hopped . | . . . Cave-ins Triggered . | . . . Exploration Rate (%) 17 | 6 30 15 Regions Visited 2 Branch Regions . Pre-discovered Areas . | . . . Known Exits Taken . | . . . Unknown Exits Taken 2 | 1 1 . Scrap Searched . | . . . Spaces Dug . | . . . Terrain Destroyed . | . . . Melee . | . . . Projectile . | . . . AOE . | . . . Terrain Rammed . | . . . Walls Destroyed . | . . . Machines Disabled . | . . . Actions | -11 -10 -9 --------- Run | Yrd Mat Mat Total 667 | 89 340 238 Wait . | . . . Move 544 | 70 289 185 Hop . | . . . Pick Up 24 | 11 5 8 Fast Attach 2 | 1 1 . Attach 16 | 5 3 8 Detach 1 | . 1 . Swap 4 | . 3 1 Drop 7 | . 6 1 Fire 63 | 2 29 32 Melee . | . . . Ram 3 | . 3 . Kick 3 | . . 3 Crush . | . . . Escape Stasis . | . . . Rewire . | . . . Trap . | . . . Miscellaneous . | . . . Route ------- -11/Scrapyard -10/Materials -9/Materials History --------- Turn | Location | Event 56 | -11/Scrapyard | Discovered new exit (range 14) 125 | -11/Scrapyard | Entered Materials 316 | -10/Materials | Build established: Mutant 443 | -10/Materials | Discovered new exit (range 16) 518 | -10/Materials | Entered another Materials area 518 | -9/Materials | Evolved 2 slots: Utility x2 835 | -9/Materials | Core integrity fell below 50% 857 | -9/Materials | Self-destructed Last Messages --------------- 00801_ K-01 Serf collects debris. 00803_ Assault Rifle destroyed. 00803_ Aluminum Leg destroyed. 00805_ K-01 Serf collects debris. 00806_ Lgt. Nuclear Core destroyed. 00809_ K-01 Serf collects debris. 00815_ Acquired Sml. Laser. 00817_ Kicked A-02 Transporter. 00821_ Acquired Lgt. Assault Rifle. 00822_ Y-45 Defender destroyed. 00823_ Acquired 59 matter. 00830_ K-01 Serf collects debris. 00834_ Sml. Laser destroyed. 00837_ K-01 Serf collects debris. 00837_ Lgt. Assault Rifle destroyed. 00842_ Critical hit (Burn: +37). 00843_ Y-45 Defender destroyed. 00845_ K-01 Serf collects debris. 00851_ Acquired Aluminum Leg. 00853_ K-01 Serf collects debris. Map ----- +----------------------------------------------------+ | ?????????????????????????????????????????????????? | | ?????????????????????????????????????????????????? | | ?????????????????????????????????????????????????? | | ?????????????????????????????????????????????????? | | ?????????????????????????????????????????????????? | | ??#####+#####????????????????????????????????????? | | ??# #????????????????????????????????????? | | ??# #????????????????????????????????????? | | ??# #????????????????????????????????????? | | ??# #????????????????????????????????????? | | ??# """ """ +????????????????????????????????????? | | ??# """ """ #????????????????????????????????????? | | ### """ """ #????????????????????????????????????? | | + #????????????????? ????????????????? | | ###+####+####????????????????] ???????????????? | | ??# #??# #??????????????????? ????????????????? | | ??# #??# #??????????????????? ?????????????????? | | ??# #??# #??????????????????? ?????????????????? | | ??# #??# #??????????????????? ??????????????????? | | ??# #??# ########???????#####+#####??????????????? | | ??# #??# # ! #???????# !%*=[ #??????????????? | | ??# #### # !! #???????#===%k""" #??????????????? | | ??# # ! #???????#=====""" #??????????????? | | ??# ###### #???????#=== """ #??????????????? | | ??# #????# #???????# | ! ##?????????????? | | ??# #????# #???????#@** #?????????????? | | ??# #######+#############g!= ##?????????????? | | ??# = /gg #??????????????? | | ??# #####################/#########??????????????? | | ??# #???????????????????#w#??????????????????????? | | ??# #???????????????????# #??????????????????????? | | ### ###?????????????????# #??????????????????????? | | # #????????????????? ??????????????????????? | | # #????????????????? ??????????????????????? | | # #????????????????? "??????????????????????? | | # #????????????????? "??????????????????????? | | # #????????????????? "??????????????????????? | | ## ##????????????????? "??????????????????????? | | ?# #?????????????????? ???????????????????????? | | ?# #?????????????????? ???????????????????????? | | ?# #?????????????????? ???????????????????????? | | ?# #?????????????????? ???????????????????????? | | ?# #?????????????????? ???????????????????????? | | ## ####????????????????????????????????????????? | | !##???????????????????????????????????????? | | !#???????????????????????????????????????? | | !#???????????????????????????????????????? | | ## !#???????????????????????????????????????? | | ?# !#???????????????????????????????????????? | | ?# !##???????????????????????????????????????? | +----------------------------------------------------+ Best States ------------- Heat Dissipation 28 Energy Generation 14 Energy Capacity 250 Matter Stores 300 Matter Capacity 300 Sight Range 16 Terrain Scan Density 10 Evasion (%) 55 Recoil Reduction 2 Item Schematics ----------------- None Robot Schematics ------------------ None Fabricated ------------ Nothing Alien Tech Used ----------------- None Achievements -------------- None Challenges ------------ None Game ------ Seed ImpulseTripodScreen Manual? 0 Play Time 00:11:13 Cumulative 10.9 hours Start 2024.04.15 @ 02:53:37 End 2024.04.15 @ 03:04:21 Sessions 1 Manual Loads 0 Difficulty Rogue Special Mode None Game No. 25 Rogue 25 Adventurer 0 Explorer 0 Win Type - Total 0 Types 0/0/0/0/0/0/0/0/0 Lore% 15 Gallery% 16 Achievement% 16 Wizard Run 0 Options --------- Layout 1 ASCII 1 Keyboard 0 Movement Arrows Keybinds 0 Fullscreen 1 Font 16/Terminus Map View 50x40 Zoom Use 0% Tactical HUD 1 Map Filters NONE Filters NONE Steam SD RUN: 991b9081-2773-43c7-80d2-b34c595c53a6